[Event "*** Titled Tuesday Blitz"]
[Site "Chess.com"]
[Date "2020.04.07"]
[Round "2"]
[White "Superfelix"]
[Black "joppie2"]
[Result "0-1"]
[WhiteElo "2499"]
[BlackElo "3012"]
[TimeControl "180+1"]
[EndTime "13:18:18 PDT"]
[Termination "joppie2 won by resignation"]

1. e4 {[%clk 0:03:00.9]} 1... c5 {[%clk 0:02:56.5]} 2. Nf3 {[%clk 0:02:59.9]}
2... g5 {[%clk 0:02:53.8]} 3. Bc4 {[%clk 0:02:50.3]} 3... e6 {[%clk 0:02:48.6]}
4. h3 {[%clk 0:02:35]} 4... h6 {[%clk 0:02:44.3]} 5. d4 {[%clk 0:02:30.6]} 5...
cxd4 {[%clk 0:02:32.9]} 6. Qxd4 {[%clk 0:02:23]} 6... Nf6 {[%clk 0:02:32.9]} 7.
Nc3 {[%clk 0:02:17.9]} 7... Nc6 {[%clk 0:02:31.9]} 8. Qd1 {[%clk 0:02:10.3]}
8... Bb4 {[%clk 0:02:29.9]} 9. e5 {[%clk 0:02:06.1]} 9... Qa5 {[%clk 0:02:22.1]}
10. O-O {[%clk 0:02:01]} 10... Nxe5 {[%clk 0:02:17.7]} 11. Nb5 {[%clk 0:01:48]}
11... Nxc4 {[%clk 0:02:13.9]} 12. Qd4 {[%clk 0:01:44]} 12... Qxb5 {[%clk
0:02:12.1]} 13. Qxf6 {[%clk 0:01:43.6]} 13... Rh7 {[%clk 0:02:05.8]} 14. a4
{[%clk 0:01:27.2]} 14... Qc6 {[%clk 0:01:47.3]} 15. b3 {[%clk 0:01:24.5]} 15...
Be7 {[%clk 0:01:42.2]} 16. Qd4 {[%clk 0:01:24.3]} 16... Nd6 {[%clk 0:01:40.1]}
17. Re1 {[%clk 0:01:17]} 17... Nf5 {[%clk 0:01:33.3]} 18. Qd3 {[%clk 0:01:15.4]}
18... d6 {[%clk 0:01:23.2]} 19. g4 {[%clk 0:01:11.4]} 19... b6 {[%clk 0:01:03]}
20. gxf5 {[%clk 0:01:08.8]} 20... Bb7 {[%clk 0:01:01]} 21. Re3 {[%clk
0:01:04.6]} 21... e5 {[%clk 0:00:58.6]} 22. f6 {[%clk 0:01:00.9]} 22... e4
{[%clk 0:00:58.1]} 23. Nd4 {[%clk 0:00:52.5]} 23... Qd5 {[%clk 0:00:56.6]} 24.
Qb5+ {[%clk 0:00:49.7]} 24... Qxb5 {[%clk 0:00:55]} 25. Nxb5 {[%clk 0:00:50.1]}
25... Bxf6 {[%clk 0:00:53.9]} 26. Nxd6+ {[%clk 0:00:33.3]} 26... Kd7 {[%clk
0:00:52.2]} 27. Ba3 {[%clk 0:00:21.7]} 27... Bxa1 {[%clk 0:00:46.4]} 28. Nxb7
{[%clk 0:00:21.6]} 28... f5 {[%clk 0:00:44.2]} 29. Nd6 {[%clk 0:00:20.9]} 29...
Ke6 {[%clk 0:00:42]} 30. f3 {[%clk 0:00:19.9]} 30... Bd4 {[%clk 0:00:40.8]} 0-1

[Event "*** Titled Tuesday Blitz"]
[Site "Chess.com"]
[Date "2020.04.07"]
[Round "2"]
[White "TheBigBadChessDad"]
[Black "csati17"]
[Result "1-0"]
[WhiteElo "2278"]
[BlackElo "2476"]
[TimeControl "180+1"]
[EndTime "13:18:18 PDT"]
[Termination "TheBigBadChessDad won by resignation"]

1. d4 {[%clk 0:03:00.9]} 1... Nf6 {[%clk 0:02:59.9]} 2. Nf3 {[%clk 0:03:00.4]}
2... g6 {[%clk 0:03:00]} 3. Bg5 {[%clk 0:02:59.7]} 3... Ne4 {[%clk 0:02:58.7]}
4. Bf4 {[%clk 0:02:58.7]} 4... Bg7 {[%clk 0:02:58.7]} 5. Nbd2 {[%clk 0:02:59.2]}
5... Nxd2 {[%clk 0:02:58.8]} 6. Qxd2 {[%clk 0:03:00.1]} 6... O-O {[%clk
0:02:58.2]} 7. Bh6 {[%clk 0:03:00]} 7... d6 {[%clk 0:02:55.4]} 8. h4 {[%clk
0:02:59.3]} 8... f6 {[%clk 0:02:07.8]} 9. Bxg7 {[%clk 0:02:58]} 9... Kxg7 {[%clk
0:02:07.8]} 10. h5 {[%clk 0:02:58.7]} 10... g5 {[%clk 0:02:00.5]} 11. h6+ {[%clk
0:02:56.2]} 11... Kh8 {[%clk 0:02:00.5]} 12. e4 {[%clk 0:02:56.3]} 12... Bg4
{[%clk 0:01:56.5]} 13. Bd3 {[%clk 0:02:54.6]} 13... Bxf3 {[%clk 0:01:56.4]} 14.
gxf3 {[%clk 0:02:54.2]} 14... e5 {[%clk 0:01:56.8]} 15. c3 {[%clk 0:02:43.3]}
15... Nc6 {[%clk 0:01:53.8]} 16. Bf1 {[%clk 0:02:43]} 16... exd4 {[%clk
0:01:48.9]} 17. cxd4 {[%clk 0:02:42.7]} 17... d5 {[%clk 0:01:49.3]} 18. O-O-O
{[%clk 0:02:40.5]} 18... Qd6 {[%clk 0:01:43.6]} 19. Bh3 {[%clk 0:02:23.4]} 19...
dxe4 {[%clk 0:01:35.5]} 20. fxe4 {[%clk 0:02:21.9]} 20... Rad8 {[%clk
0:01:35.9]} 21. d5 {[%clk 0:02:17.3]} 21... Ne5 {[%clk 0:01:36.2]} 22. Kb1
{[%clk 0:02:07.9]} 22... Nc4 {[%clk 0:01:08.2]} 23. Qc3 {[%clk 0:02:02.5]} 23...
b5 {[%clk 0:01:05.1]} 24. b3 {[%clk 0:01:36.1]} 24... Na3+ {[%clk 0:01:04.1]}
25. Kb2 {[%clk 0:01:35.9]} 25... b4 {[%clk 0:01:04.3]} 26. Qd4 {[%clk
0:01:35.3]} 26... Nb5 {[%clk 0:01:03]} 27. Qc4 {[%clk 0:01:29.5]} 27... Nc3
{[%clk 0:01:03.2]} 28. Rd4 {[%clk 0:01:22.3]} 28... Rb8 {[%clk 0:00:50.8]} 29.
Bf5 {[%clk 0:01:14.6]} 29... Qf4 {[%clk 0:00:44.7]} 30. Rc1 {[%clk 0:01:06.8]}
30... Qxf2+ {[%clk 0:00:37]} 31. Rc2 {[%clk 0:01:07]} 31... Qf4 {[%clk
0:00:36.4]} 32. d6 {[%clk 0:01:00.6]} 32... Rbd8 {[%clk 0:00:13.5]} 33. Qxc7
{[%clk 0:00:56.1]} 33... Nd1+ {[%clk 0:00:07.2]} 34. Rxd1 {[%clk 0:00:55.9]}
34... Qe5+ {[%clk 0:00:06.8]} 35. Kb1 {[%clk 0:00:55.2]} 1-0

[Event "*** Titled Tuesday Blitz"]
[Site "Chess.com"]
[Date "2020.04.07"]
[Round "2"]
[White "Chesstrainer1"]
[Black "renanreis"]
[Result "1-0"]
[WhiteElo "2454"]
[BlackElo "2183"]
[TimeControl "180+1"]
[EndTime "13:18:18 PDT"]
[Termination "Chesstrainer1 won by resignation"]

1. Nf3 {[%clk 0:03:00.9]} 1... Nf6 {[%clk 0:02:58.4]} 2. c4 {[%clk 0:02:59.9]}
2... e6 {[%clk 0:02:55.1]} 3. g3 {[%clk 0:02:57.1]} 3... d5 {[%clk 0:02:55]} 4.
d4 {[%clk 0:02:55.3]} 4... dxc4 {[%clk 0:02:52.8]} 5. Bg2 {[%clk 0:02:53.9]}
5... Be7 {[%clk 0:02:53.1]} 6. O-O {[%clk 0:02:50.9]} 6... O-O {[%clk
0:02:52.7]} 7. Ne5 {[%clk 0:02:49.7]} 7... c5 {[%clk 0:02:35.1]} 8. dxc5 {[%clk
0:02:47.9]} 8... Qxd1 {[%clk 0:02:32.3]} 9. Rxd1 {[%clk 0:02:46.7]} 9... Bxc5
{[%clk 0:02:32.5]} 10. Nc3 {[%clk 0:02:33.3]} 10... Nbd7 {[%clk 0:02:25.6]} 11.
Nxc4 {[%clk 0:02:32.8]} 11... Nb6 {[%clk 0:02:21.5]} 12. Nd6 {[%clk 0:02:21]}
12... Rb8 {[%clk 0:01:45.5]} 13. Bf4 {[%clk 0:02:16.7]} 13... e5 {[%clk
0:01:34.4]} 14. Bxe5 {[%clk 0:02:12.9]} 14... Ng4 {[%clk 0:01:34.1]} 15. Bd4
{[%clk 0:02:02.9]} 15... Bxd6 {[%clk 0:01:14.4]} 16. Bxb6 {[%clk 0:02:02.3]}
16... Bxg3 {[%clk 0:00:42.6]} 17. Bxa7 {[%clk 0:01:55.5]} 17... Ra8 {[%clk
0:00:42]} 18. Bc5 {[%clk 0:01:53.7]} 18... Bxh2+ {[%clk 0:00:39.9]} 19. Kh1
{[%clk 0:01:51.6]} 19... Re8 {[%clk 0:00:18.5]} 20. f3 {[%clk 0:01:44.6]} 20...
Ra5 {[%clk 0:00:15.6]} 21. fxg4 {[%clk 0:01:33]} 21... Rxc5 {[%clk 0:00:15.9]}
22. Kxh2 {[%clk 0:01:32.9]} 22... Bxg4 {[%clk 0:00:16.3]} 23. Rd5 {[%clk
0:01:19.7]} 23... Rxd5 {[%clk 0:00:14.3]} 24. Bxd5 {[%clk 0:01:19]} 24... Kf8
{[%clk 0:00:13.8]} 25. e4 {[%clk 0:01:13.5]} 25... Re7 {[%clk 0:00:13.2]} 26. a4
{[%clk 0:01:03.1]} 26... Rc7 {[%clk 0:00:11.9]} 27. a5 {[%clk 0:01:01.8]} 27...
Ke7 {[%clk 0:00:11.5]} 28. Ra4 {[%clk 0:01:00.3]} 1-0

[Event "*** Titled Tuesday Blitz"]
[Site "Chess.com"]
[Date "2020.04.07"]
[Round "2"]
[White "jmduque"]
[Black "zacachess"]
[Result "1-0"]
[WhiteElo "2507"]
[BlackElo "2278"]
[TimeControl "180+1"]
[EndTime "13:18:19 PDT"]
[Termination "jmduque won by resignation"]

1. e4 {[%clk 0:03:00.9]} 1... c5 {[%clk 0:02:59.3]} 2. Nf3 {[%clk 0:03:00.5]}
2... Nc6 {[%clk 0:02:59.3]} 3. d4 {[%clk 0:03:00.3]} 3... cxd4 {[%clk
0:03:00.2]} 4. Nxd4 {[%clk 0:03:00.8]} 4... g6 {[%clk 0:03:00.7]} 5. c4 {[%clk
0:03:00.6]} 5... Bg7 {[%clk 0:03:00.5]} 6. Be3 {[%clk 0:03:00.6]} 6... Nf6
{[%clk 0:03:00.8]} 7. Nc3 {[%clk 0:03:00.3]} 7... d6 {[%clk 0:03:00.6]} 8. Be2
{[%clk 0:03:00.2]} 8... O-O {[%clk 0:03:00.9]} 9. O-O {[%clk 0:03:00.1]} 9...
Nxd4 {[%clk 0:03:01]} 10. Bxd4 {[%clk 0:03:00.2]} 10... a5 {[%clk 0:03:01.2]}
11. Qd3 {[%clk 0:02:53]} 11... Bd7 {[%clk 0:02:59.1]} 12. b3 {[%clk 0:02:26.5]}
12... Bc6 {[%clk 0:02:58.2]} 13. a3 {[%clk 0:02:26.1]} 13... Nd7 {[%clk
0:02:56.1]} 14. Bxg7 {[%clk 0:02:26]} 14... Kxg7 {[%clk 0:02:55.8]} 15. b4
{[%clk 0:02:26.9]} 15... axb4 {[%clk 0:02:30.4]} 16. axb4 {[%clk 0:02:26.6]}
16... b6 {[%clk 0:02:28.5]} 17. Qd4+ {[%clk 0:02:05.6]} 17... Kg8 {[%clk
0:02:26]} 18. h3 {[%clk 0:02:04.8]} 18... Qc7 {[%clk 0:02:19.6]} 19. Nd5 {[%clk
0:01:59.9]} 19... Bxd5 {[%clk 0:02:19.3]} 20. cxd5 {[%clk 0:01:59.9]} 20... Qc2
{[%clk 0:00:59]} 21. Bb5 {[%clk 0:01:54.6]} 21... Nf6 {[%clk 0:00:51.9]} 22. f3
{[%clk 0:01:40]} 22... Qb3 {[%clk 0:00:50.1]} 23. Rab1 {[%clk 0:01:37]} 23...
Qc2 {[%clk 0:00:44.1]} 24. Rb2 {[%clk 0:01:26.6]} 24... Qc7 {[%clk 0:00:42.6]}
25. Bc6 {[%clk 0:01:25.2]} 25... Ra3 {[%clk 0:00:35.9]} 26. Rbb1 {[%clk
0:01:20.7]} 26... Nd7 {[%clk 0:00:33.7]} 27. Ra1 {[%clk 0:01:17.7]} 27... Rxa1
{[%clk 0:00:32.3]} 28. Rxa1 {[%clk 0:01:18.6]} 28... Ne5 {[%clk 0:00:33.2]} 29.
b5 {[%clk 0:01:06]} 29... f5 {[%clk 0:00:33]} 30. exf5 {[%clk 0:01:04.3]} 30...
Rxf5 {[%clk 0:00:32.4]} 31. Kh1 {[%clk 0:00:57.9]} 31... Kf7 {[%clk 0:00:26.9]}
32. Ra8 {[%clk 0:00:53.9]} 32... Rf6 {[%clk 0:00:25.5]} 33. Qh4 {[%clk
0:00:52.6]} 33... Kg7 {[%clk 0:00:24.9]} 34. Qa4 {[%clk 0:00:49]} 34... e6
{[%clk 0:00:22.1]} 35. Ra7 {[%clk 0:00:47.1]} 1-0

[Event "*** Titled Tuesday Blitz"]
[Site "Chess.com"]
[Date "2020.04.07"]
[Round "2"]
[White "Vyacheslav_N"]
[Black "Taabling"]
[Result "0-1"]
[WhiteElo "2467"]
[BlackElo "2291"]
[TimeControl "180+1"]
[EndTime "13:18:19 PDT"]
[Termination "Taabling won on time"]

1. e4 {[%clk 0:03:00.9]} 1... e5 {[%clk 0:02:59.9]} 2. Nc3 {[%clk 0:02:58.1]}
2... Bc5 {[%clk 0:02:57.7]} 3. g3 {[%clk 0:02:56.9]} 3... d6 {[%clk 0:02:57.3]}
4. Bg2 {[%clk 0:02:56.8]} 4... h5 {[%clk 0:02:57.1]} 5. h3 {[%clk 0:02:56.6]}
5... Nc6 {[%clk 0:02:53.5]} 6. Nge2 {[%clk 0:02:55.2]} 6... a6 {[%clk
0:02:53.6]} 7. O-O {[%clk 0:02:55.2]} 7... Nge7 {[%clk 0:02:47.6]} 8. d3 {[%clk
0:02:55.3]} 8... Ng6 {[%clk 0:02:45.4]} 9. Kh2 {[%clk 0:02:49.9]} 9... h4 {[%clk
0:02:43.5]} 10. g4 {[%clk 0:02:50.3]} 10... Bd7 {[%clk 0:02:31.9]} 11. f4 {[%clk
0:02:49.6]} 11... f6 {[%clk 0:02:32]} 12. f5 {[%clk 0:02:24]} 12... Nge7 {[%clk
0:02:29.5]} 13. g5 {[%clk 0:02:23.8]} 13... Nd4 {[%clk 0:02:24.1]} 14. Nxd4
{[%clk 0:02:19.4]} 14... Bxd4 {[%clk 0:02:23.5]} 15. Ne2 {[%clk 0:02:19.9]}
15... Ba7 {[%clk 0:02:21.5]} 16. d4 {[%clk 0:02:11]} 16... exd4 {[%clk
0:02:19.9]} 17. Nxd4 {[%clk 0:02:11.9]} 17... Nc6 {[%clk 0:02:19.9]} 18. Ne6
{[%clk 0:01:26.4]} 18... Bxe6 {[%clk 0:02:17.5]} 19. fxe6 {[%clk 0:01:27.3]}
19... Qe7 {[%clk 0:02:17.7]} 20. gxf6 {[%clk 0:01:12.8]} 20... gxf6 {[%clk
0:02:18.6]} 21. Qg4 {[%clk 0:01:09.4]} 21... O-O-O {[%clk 0:02:16]} 22. Qf5
{[%clk 0:01:02.2]} 22... Rdf8 {[%clk 0:02:01.8]} 23. c3 {[%clk 0:00:44.9]} 23...
Ne5 {[%clk 0:02:00.6]} 24. Bf4 {[%clk 0:00:22.6]} 24... Nd3 {[%clk 0:01:47.5]}
25. Rad1 {[%clk 0:00:01.9]} 25... Nc5 {[%clk 0:01:46.5]} 26. Be3 {[%clk
0:00:01.5]} 26... Kb8 {[%clk 0:01:36.7]} 27. Bf3 {[%clk 0:00:02.1]} 27... Nxe6
{[%clk 0:01:35.4]} 28. Bxa7+ {[%clk 0:00:03]} 28... Kxa7 {[%clk 0:01:35.2]} 29.
e5 {[%clk 0:00:03.3]} 29... fxe5 {[%clk 0:01:29.9]} 30. Qe4 {[%clk 0:00:03.9]}
30... Nc5 {[%clk 0:01:30]} 31. Qe3 {[%clk 0:00:04.5]} 31... e4 {[%clk
0:01:20.6]} 32. Bg2 {[%clk 0:00:03.8]} 32... Qe5+ {[%clk 0:01:20.3]} 33. Kh1
{[%clk 0:00:04.4]} 33... Kb8 {[%clk 0:00:57.4]} 0-1

[Event "*** Titled Tuesday Blitz"]
[Site "Chess.com"]
[Date "2020.04.07"]
[Round "2"]
[White "aNONoNonono"]
[Black "BobanBogosavljevic"]
[Result "0-1"]
[WhiteElo "2510"]
[BlackElo "2756"]
[TimeControl "180+1"]
[EndTime "13:18:21 PDT"]
[Termination "BobanBogosavljevic won on time"]

1. e4 {[%clk 0:03:00.9]} 1... c5 {[%clk 0:02:59.6]} 2. Nf3 {[%clk 0:03:01.3]}
2... Nc6 {[%clk 0:02:59.8]} 3. d4 {[%clk 0:03:01.8]} 3... cxd4 {[%clk
0:02:59.6]} 4. Nxd4 {[%clk 0:03:02.7]} 4... g6 {[%clk 0:03:00.1]} 5. Nc3 {[%clk
0:03:02.3]} 5... Bg7 {[%clk 0:02:59.8]} 6. Be3 {[%clk 0:03:02.9]} 6... Nf6
{[%clk 0:03:00.1]} 7. Nxc6 {[%clk 0:03:03.2]} 7... bxc6 {[%clk 0:03:00.3]} 8. e5
{[%clk 0:03:03.7]} 8... Ng8 {[%clk 0:02:59.5]} 9. f4 {[%clk 0:03:04.1]} 9... Nh6
{[%clk 0:02:59]} 10. Qd2 {[%clk 0:02:58.8]} 10... O-O {[%clk 0:02:47.2]} 11.
O-O-O {[%clk 0:02:56.3]} 11... d6 {[%clk 0:02:41.9]} 12. h3 {[%clk 0:02:53.2]}
12... Qa5 {[%clk 0:02:39.4]} 13. g4 {[%clk 0:02:51.5]} 13... Bxg4 {[%clk
0:02:00.2]} 14. hxg4 {[%clk 0:02:50.3]} 14... Nxg4 {[%clk 0:02:01.1]} 15. Bg1
{[%clk 0:02:19.8]} 15... dxe5 {[%clk 0:01:55.2]} 16. Qg2 {[%clk 0:02:12]} 16...
h5 {[%clk 0:01:39.4]} 17. f5 {[%clk 0:01:24.7]} 17... Bh6+ {[%clk 0:01:21]} 18.
Kb1 {[%clk 0:01:23.1]} 18... Rab8 {[%clk 0:01:21.5]} 19. Ka1 {[%clk 0:01:23.6]}
19... Rxb2 {[%clk 0:01:13.7]} 20. Qxc6 {[%clk 0:01:00.7]} 20... Rxc2 {[%clk
0:00:45.1]} 21. Rh3 {[%clk 0:00:23.5]} 21... Qa3 {[%clk 0:00:35.3]} 22. Rb1
{[%clk 0:00:16.9]} 22... Bc1 {[%clk 0:00:28.4]} 0-1

[Event "*** Titled Tuesday Blitz"]
[Site "Chess.com"]
[Date "2020.04.07"]
[Round "2"]
[White "fpawn"]
[Black "nfds"]
[Result "0-1"]
[WhiteElo "2297"]
[BlackElo "2587"]
[TimeControl "180+1"]
[EndTime "13:18:21 PDT"]
[Termination "nfds won by resignation"]

1. e4 {[%clk 0:03:00.9]} 1... e5 {[%clk 0:02:59.2]} 2. Nf3 {[%clk 0:03:00]} 2...
Nc6 {[%clk 0:02:56.8]} 3. d4 {[%clk 0:02:59.5]} 3... exd4 {[%clk 0:02:55.9]} 4.
Nxd4 {[%clk 0:02:59.6]} 4... Nf6 {[%clk 0:02:54.1]} 5. Nxc6 {[%clk 0:02:59.5]}
5... bxc6 {[%clk 0:02:53.5]} 6. e5 {[%clk 0:02:59]} 6... Ng8 {[%clk 0:02:48.9]}
7. Bd3 {[%clk 0:02:55]} 7... g6 {[%clk 0:02:48.1]} 8. O-O {[%clk 0:02:53.5]}
8... Bg7 {[%clk 0:02:47.5]} 9. Re1 {[%clk 0:02:53.7]} 9... Rb8 {[%clk
0:02:39.3]} 10. Nc3 {[%clk 0:02:53.2]} 10... Ne7 {[%clk 0:02:30]} 11. Rb1 {[%clk
0:02:51.9]} 11... O-O {[%clk 0:02:26.6]} 12. f4 {[%clk 0:02:48.9]} 12... d6
{[%clk 0:02:24.7]} 13. exd6 {[%clk 0:02:43.4]} 13... cxd6 {[%clk 0:02:13]} 14.
Be3 {[%clk 0:02:33]} 14... Rxb2 {[%clk 0:02:05.8]} 15. Rxb2 {[%clk 0:02:28.4]}
15... Bxc3 {[%clk 0:02:05]} 16. Rb1 {[%clk 0:02:18.2]} 16... Bxe1 {[%clk
0:02:04]} 17. Qxe1 {[%clk 0:02:19.1]} 17... Nd5 {[%clk 0:02:00.4]} 18. Bd2
{[%clk 0:02:06.6]} 18... Be6 {[%clk 0:01:43.7]} 19. Qf2 {[%clk 0:02:00.5]} 19...
Qd7 {[%clk 0:01:37.4]} 20. Ba6 {[%clk 0:01:55.1]} 20... Nb6 {[%clk 0:01:35.2]}
21. a3 {[%clk 0:01:52.1]} 21... c5 {[%clk 0:01:33.8]} 22. Bc3 {[%clk 0:01:45.4]}
22... Qa4 {[%clk 0:01:24.9]} 23. Bd3 {[%clk 0:01:27.5]} 23... Qxa3 {[%clk
0:01:24.1]} 24. Bb2 {[%clk 0:01:22.4]} 24... Qa2 {[%clk 0:01:23]} 25. Qe1 {[%clk
0:01:17.4]} 25... Nd5 {[%clk 0:01:10.3]} 26. c4 {[%clk 0:01:14.4]} 26... Rb8
{[%clk 0:00:31.3]} 27. cxd5 {[%clk 0:01:09.9]} 27... Qxd5 {[%clk 0:00:30.7]} 28.
Be4 {[%clk 0:01:07]} 28... Qc4 {[%clk 0:00:26.4]} 29. Ba1 {[%clk 0:00:59.8]}
29... Rxb1 {[%clk 0:00:24.1]} 30. Qxb1 {[%clk 0:00:59.9]} 30... Qb4 {[%clk
0:00:17.7]} 31. g3 {[%clk 0:00:43.6]} 31... a5 {[%clk 0:00:16.3]} 32. Bg2 {[%clk
0:00:35.4]} 32... Qxb1+ {[%clk 0:00:15.5]} 0-1

[Event "*** Titled Tuesday Blitz"]
[Site "Chess.com"]
[Date "2020.04.07"]
[Round "2"]
[White "champ2005"]
[Black "Oneofmyturns"]
[Result "1-0"]
[WhiteElo "3002"]
[BlackElo "2603"]
[TimeControl "180+1"]
[EndTime "13:18:22 PDT"]
[Termination "champ2005 won by resignation"]

1. c4 {[%clk 0:03:00.9]} 1... e6 {[%clk 0:02:59]} 2. Nf3 {[%clk 0:02:59.7]} 2...
d5 {[%clk 0:02:59.9]} 3. d4 {[%clk 0:02:58.8]} 3... Nf6 {[%clk 0:03:00.1]} 4. g3
{[%clk 0:02:59.1]} 4... Bb4+ {[%clk 0:02:52.9]} 5. Bd2 {[%clk 0:02:58.8]} 5...
Be7 {[%clk 0:02:53.5]} 6. Bg2 {[%clk 0:02:59.1]} 6... O-O {[%clk 0:02:54.1]} 7.
O-O {[%clk 0:02:58.9]} 7... c6 {[%clk 0:02:54.7]} 8. Bc3 {[%clk 0:02:56.2]} 8...
b6 {[%clk 0:02:52.9]} 9. Nbd2 {[%clk 0:02:53]} 9... Nbd7 {[%clk 0:02:53.2]} 10.
Qc2 {[%clk 0:02:51.4]} 10... Ba6 {[%clk 0:02:49.4]} 11. b3 {[%clk 0:02:46.6]}
11... Rc8 {[%clk 0:02:43]} 12. e4 {[%clk 0:02:45.9]} 12... c5 {[%clk 0:02:37.4]}
13. exd5 {[%clk 0:02:34]} 13... exd5 {[%clk 0:02:36.9]} 14. Rfe1 {[%clk
0:02:21.4]} 14... dxc4 {[%clk 0:02:24.4]} 15. bxc4 {[%clk 0:02:04.7]} 15... cxd4
{[%clk 0:02:24.3]} 16. Nxd4 {[%clk 0:02:05.6]} 16... Bc5 {[%clk 0:01:41.7]} 17.
Qa4 {[%clk 0:01:41.9]} 17... Nb8 {[%clk 0:01:25.7]} 18. N4b3 {[%clk 0:01:24.1]}
18... Nfd7 {[%clk 0:00:42.6]} 19. Ne4 {[%clk 0:01:21.9]} 19... Qc7 {[%clk
0:00:39.8]} 20. Nbxc5 {[%clk 0:00:55]} 20... Nxc5 {[%clk 0:00:40.7]} 21. Nxc5
{[%clk 0:00:55.1]} 21... Qxc5 {[%clk 0:00:41.6]} 22. Bb4 {[%clk 0:00:54.4]}
22... Qxc4 {[%clk 0:00:40.3]} 23. Bf1 {[%clk 0:00:54.6]} 23... Qg4 {[%clk
0:00:21]} 24. h3 {[%clk 0:00:45.1]} 24... Qf3 {[%clk 0:00:10.3]} 25. Bxa6 {[%clk
0:00:36.1]} 1-0

[Event "*** Titled Tuesday Blitz"]
[Site "Chess.com"]
[Date "2020.04.07"]
[Round "2"]
[White "gmcorrales"]
[Black "kungmongmanh"]
[Result "1-0"]
[WhiteElo "2825"]
[BlackElo "2544"]
[TimeControl "180+1"]
[EndTime "13:18:24 PDT"]
[Termination "gmcorrales won on time"]

1. e4 {[%clk 0:02:52.3]} 1... e6 {[%clk 0:02:59.6]} 2. d4 {[%clk 0:02:51.7]}
2... d5 {[%clk 0:02:59.9]} 3. e5 {[%clk 0:02:49.2]} 3... c5 {[%clk 0:02:59.6]}
4. c3 {[%clk 0:02:49.6]} 4... Nc6 {[%clk 0:03:00]} 5. Nf3 {[%clk 0:02:49.9]}
5... Bd7 {[%clk 0:02:59.9]} 6. Be2 {[%clk 0:02:48.9]} 6... Nge7 {[%clk
0:02:59.4]} 7. O-O {[%clk 0:02:48.8]} 7... Nf5 {[%clk 0:02:59.2]} 8. Na3 {[%clk
0:02:48.2]} 8... Be7 {[%clk 0:02:55.9]} 9. Nc2 {[%clk 0:02:47.1]} 9... O-O
{[%clk 0:02:56]} 10. Ne3 {[%clk 0:02:46.5]} 10... cxd4 {[%clk 0:02:16.4]} 11.
Nxf5 {[%clk 0:02:44.3]} 11... exf5 {[%clk 0:02:16.1]} 12. cxd4 {[%clk
0:02:44.6]} 12... Be6 {[%clk 0:02:09.4]} 13. a3 {[%clk 0:02:44]} 13... Na5
{[%clk 0:01:58.8]} 14. Bd2 {[%clk 0:02:39.5]} 14... Nc4 {[%clk 0:01:55.2]} 15.
Bc3 {[%clk 0:02:37.6]} 15... Rc8 {[%clk 0:01:53.9]} 16. Ne1 {[%clk 0:02:36.4]}
16... b6 {[%clk 0:01:29.6]} 17. Rc1 {[%clk 0:02:15.6]} 17... Qd7 {[%clk
0:01:24.8]} 18. Nd3 {[%clk 0:02:15.5]} 18... a5 {[%clk 0:01:20.2]} 19. g3 {[%clk
0:02:05.6]} 19... Rc7 {[%clk 0:01:17.6]} 20. h4 {[%clk 0:02:05.6]} 20... h6
{[%clk 0:01:16.7]} 21. Nf4 {[%clk 0:02:02.7]} 21... Rfc8 {[%clk 0:01:16.3]} 22.
Qd3 {[%clk 0:01:56.9]} 22... b5 {[%clk 0:00:53.2]} 23. Rb1 {[%clk 0:01:11.2]}
23... Nxa3 {[%clk 0:00:25.8]} 24. Bxa5 {[%clk 0:01:10.9]} 24... Ra7 {[%clk
0:00:17.2]} 25. Bb6 {[%clk 0:01:06.1]} 25... Nc4 {[%clk 0:00:17.1]} 26. Bxa7
{[%clk 0:01:05.4]} 26... Qxa7 {[%clk 0:00:17.3]} 27. b3 {[%clk 0:01:04.8]} 27...
Na3 {[%clk 0:00:16.5]} 28. Rbc1 {[%clk 0:01:04.8]} 28... Qd7 {[%clk 0:00:12.4]}
29. Bf3 {[%clk 0:01:03.1]} 29... Rxc1 {[%clk 0:00:06]} 30. Rxc1 {[%clk 0:01:04]}
30... g6 {[%clk 0:00:04.4]} 31. Qc3 {[%clk 0:01:00.2]} 31... Kg7 {[%clk
0:00:03.1]} 32. Qc6 {[%clk 0:00:58.9]} 1-0

[Event "*** Titled Tuesday Blitz"]
[Site "Chess.com"]
[Date "2020.04.07"]
[Round "2"]
[White "Volodar_Murzin"]
[Black "tandaleo"]
[Result "1-0"]
[WhiteElo "2681"]
[BlackElo "2328"]
[TimeControl "180+1"]
[EndTime "13:18:25 PDT"]
[Termination "Volodar_Murzin won on time"]

1. e4 {[%clk 0:03:00.9]} 1... e5 {[%clk 0:02:59.8]} 2. Nf3 {[%clk 0:03:01]} 2...
Nc6 {[%clk 0:02:59.5]} 3. Bb5 {[%clk 0:03:01.3]} 3... a6 {[%clk 0:02:59.4]} 4.
Ba4 {[%clk 0:03:01.4]} 4... Nf6 {[%clk 0:02:59.6]} 5. O-O {[%clk 0:03:01.1]}
5... Be7 {[%clk 0:02:57.5]} 6. d3 {[%clk 0:03:00.3]} 6... d6 {[%clk 0:02:55.4]}
7. a3 {[%clk 0:02:59.3]} 7... O-O {[%clk 0:02:49.7]} 8. Nc3 {[%clk 0:02:58.6]}
8... Be6 {[%clk 0:02:19.6]} 9. Ng5 {[%clk 0:02:49.4]} 9... Nd4 {[%clk
0:02:18.6]} 10. Nxe6 {[%clk 0:02:48.8]} 10... fxe6 {[%clk 0:02:18.5]} 11. Ne2
{[%clk 0:02:41.6]} 11... c5 {[%clk 0:01:48.2]} 12. c3 {[%clk 0:02:37.8]} 12...
Nxe2+ {[%clk 0:01:44]} 13. Qxe2 {[%clk 0:02:37.1]} 13... Qc7 {[%clk 0:01:40.8]}
14. Bb3 {[%clk 0:02:35.1]} 14... d5 {[%clk 0:01:37]} 15. exd5 {[%clk 0:02:32.6]}
15... exd5 {[%clk 0:01:37.2]} 16. Bg5 {[%clk 0:02:32]} 16... Rad8 {[%clk
0:01:36.2]} 17. Rae1 {[%clk 0:02:29.5]} 17... h6 {[%clk 0:01:02.8]} 18. Bh4
{[%clk 0:02:23.4]} 18... b5 {[%clk 0:00:19.2]} 19. Qxe5 {[%clk 0:02:13.6]} 19...
Bd6 {[%clk 0:00:17.8]} 20. Qe6+ {[%clk 0:02:12.9]} 20... Kh8 {[%clk 0:00:17.7]}
21. Bg3 {[%clk 0:02:11.3]} 21... Bxg3 {[%clk 0:00:17.5]} 22. fxg3 {[%clk
0:02:08]} 22... c4 {[%clk 0:00:18.1]} 23. Bc2 {[%clk 0:02:03.8]} 23... d4 {[%clk
0:00:07.5]} 24. cxd4 {[%clk 0:01:55]} 24... Rxd4 {[%clk 0:00:07.5]} 25. dxc4
{[%clk 0:01:51.4]} 25... Rxc4 {[%clk 0:00:07.8]} 26. Bb1 {[%clk 0:01:47]} 26...
Qc5+ {[%clk 0:00:07.3]} 27. Kh1 {[%clk 0:01:46.6]} 27... Ng4 {[%clk 0:00:02.5]}
28. Rxf8+ {[%clk 0:01:19.2]} 28... Qxf8 {[%clk 0:00:02.3]} 29. Qe8 {[%clk
0:01:00.9]} 29... Rc8 {[%clk 0:00:02.1]} 30. Qxf8+ {[%clk 0:00:58.1]} 30... Rxf8
{[%clk 0:00:02.2]} 31. h3 {[%clk 0:00:57.8]} 31... Nf6 {[%clk 0:00:02.4]} 32.
Re6 {[%clk 0:00:57.4]} 32... a5 {[%clk 0:00:03.1]} 33. Bg6 {[%clk 0:00:56.4]}
33... Rd8 {[%clk 0:00:03]} 34. Rb6 {[%clk 0:00:55.2]} 1-0